Workbook

Sheet Beregning (hidden)
B2: Vurdering af radiatorerernes og gulvvarmens (varmeafgiveres) egnethed til varmepumpe
B5: Bemærk, at der er flere faneblade i regnearket. Der indtastes kun i gule felter i varmeafgivere, beregning og rør. Data for varmeanlægget indtastes i fanebladet "Beregning". Her ses også beregningsresultater i de orange og grønne felter. Orange felter sammenlignes: Er husets varmebehov større end den installerede radiatoreffekt? Hvis ja, så er varmegiverne ikke egnet til det ønskede varmeanlæg, med mindre der udvides med flere radiatorer eller gulvvarme. Alle gule felter skal udfyldes (indeholder p.t. eksempeltekst).
B9: Data for radiatorer skal udfyldes i fanebladet "Varmeafgivere". Billeder af de forskellige radiatorer ses i fanebladet "Billeder".
B10: Der kan skiftes mellem fanebladene nederst på arket.
B11: Både arket "Beregning" og arket "Varmegivere" skal være udfyldt, før din beregning er foretaget.
B13: Arket kan anvendes til både en- og tostrengs varmeanlæg, dog skal særskilt vurdering af flowforholdene foretages i tilfælde, hvor særlige en-strengsarmaturer er anvendt.
B14: Varmepumper dimensioneres ofte til - 7 °C udetemperatur, men der angives også data for - 12 °C. Den nødvendige varmepumpeydelse skal være svare til husets varmebehov ved - 7 °C tillagt 500 W aht. varmtvandsproduktion.
B15: Under rør beregnes tryktabet for rørene tættest på varmepumpen. Dette bør næppe være større end ca 10 kPa. Der er typisk 15 kPa over kondensatoren og der skal være ca 10 kPa over radiatorventilerne.
B16: Fordelingsrørene kan godt være begrænsende for flowet.
B17: Husets varmebehov ved -7°C ude og effekten af varmeanlæg inkl. gulvvarme ved radiator-middeltemperaturen, som begge er markeret med orange skal være så tætte på hinanden som muligt.
B18: Hvis effekten af varmeanlæg inkl. gulvvarme ved middeltemperaturen er lavere end husets varmebehov ved -7°C ude betyder det, at varmeanlægget kapacitet er for lille.
B19: Dette betyder, at fremløbstemperaturen (maks. fremløbstemperatur) bliver højere end den ønskede.
B21: Hvis max flowkapacitet er mindre end nødvendig flowkapacitet bør der foretages en grundigere analyse af rørsystemet. Der kræves muligvis en større pumpe og der kan opstå støj i radiatorventiler mm.
B24: Nuværende varmekilde | G24: Input
B26: Type (gammel olie- eller gaskedel) | G26: Oliefyr
B29: Nuværende forbrug | G29: Input | J29: Beregningsresultater
B31: Brændselsforbrug pr år, skal være større end 600 | G31: 2000 | H31: =IF($G$26="gaskedel","m³",IF($G$26="oliefyr","liter olie","")) -> liter olie
J32: -12°C | M32: -7 °C
B33: Huset varmebehov ved -12/ -7 °C ude | J33: =(G31*IF(G26="gaskedel",11*0.85,10*0.85)-G76)/2.2 -> 6818.181818 | K33: Watt | M33: =J33*27/32 -> 5752.840909 | N33: Watt
B35: Nuværende varmeafgivere - er det OK? | E35: =IF(J54>95,"kontroller indtastningerne, varmebehovet er langt større end varmegivernes kapacitet!","") ->  | J35: Beregningsresultater
B37: Maks. fremløbstemperatur fra varmepumpe datablad | G37: 55 | H37: °C
B39: Ønsket returtemperatur, svarende til ovenstående | G39: 45 | H39: °C
B41: Gulvvarme fremløbstemperatur dimensionerende | G41: 36 | H41: °C
B43: Gulvvarme returtemperatur dimensionerende | G43: 30 | H43: °C
B45: Radiatormiddeltemperatur ved max varmepumpetemperaturer | J45: =(G37-G39)/LN((G37-20)/(G39-20))+20 -> 49.72013412 | K45: °C
B47: Installeret radiatoreffekt ved max varmepumpetemperaturer | J47: =((J45-20)/Beregn!C5)^1.3*Beregn!F8+0.01 -> 11692.1169 | K47: Watt
Q48: °
B49: Installeret gulvvarmeeffekt | J49: ='Heat emitters'!BV15 -> 500 | K49: Watt
AB50: =(J51<J33)*1+(J51>M33)*(J51<J33)*2+(J51>J33)*3 -> 3
B51: Effekt af varmeanlæg inkl. gulvvarme ved Max varmepumpemperatur | J51: =+J47+J49 -> 12192.1169 | K51: Watt | M51: =_xlfn.IFS(J51<M33,"Ikke tilstrækkelig varmeflade",AND(J51>M33,J51<J33),"Tilstrækkelig varmeflade ved - 7",J51>J33,"Tilstrækkelig varmeflade ved -12°C og derfor rigelig ved -7°C") -> Tilstrækkelig varmeflade ved -12°C og derfor rigelig ved -7°C
B54: Tilstrækkelig fremløbstemperatur ved -12 °C ude | J54: =Beregn!D19 -> 41.213111 | K54: °C
B56: Returtemperatur ved -12 °C ude inkl gulvvarme | J56: =Beregn!D24 -> 35.59590171 | K56: °C
B58: Varmeanlægget kan dække andel af varmebehov ved -12 °C | J58: =J51/J33*100 -> 178.8177145 | K58: % | M58: =J54-J56 -> 5.617209285
B60: Dette svarer til varmebehov ned til udetemperatur | J60: =20-J58/100*32 -> -37.22166863 | K60: °C
B62: Tilstrækkelig fremløbstemperatur ved -7 | J62: =Beregn!D30 -> 38.30626786 | K62: °C
B63: Afkøling rad
B64: Nødvendig flowkapacitet ved -7 | J64: =Beregn!D37/1000 -> 1.057301914 | K64: m3/h | M64: korrekt flow pr radiator
B66: Max flowkapacitet, overslag | J66: =(Beregn!D33*0.86+'Heat emitters'!AZ46)/1000 -> 1.251768135 | K66: m3/h | M66: 100 l pr radiator + gulvvarme, tommelfingerregel
B68: Dimensionerende varmepumpeeffekt ved-7 °C/ suppleringseffekt op til -12°C, inkl. varmt vand | J68: =M33+500 -> 6252.840909 | K68: Watt | M68: =J70-J68 -> 1065.340909 | N68: W
B70: Dimensionerende varmepumpeeffekt ved -12° inkl varmt vand | J70: =J33+500 -> 7318.181818 | K70: Watt
B76: Varmtvandsforbrug fast værdi! | G76: 2000 | H76: kWh/år
B77: Obs. Varmebrug inkl. varmt vand | J77: =J33*2.2+3000 -> 18000 | K77: =IF($G$26="gaskedel","kWh/år",IF($G$26="oliefyr","kWh/år","")) -> kWh/år
D114: Kedel
D116: Gaskedel
D117: Oliefyr

Sheet Rør (hidden)
N1: rel Ru | O1: =0.05/F2 -> 0.0025
B2: Rørdiameter indvendig | F2: 20 | G2: mm | N2: ny | O2: =vi(AVERAGE(Beregning!J45)) -> 5.366339825e-07
N3: Re | O3: =H8*(F2/1000)/O2 -> 34841.63041
B4: Rørlængde | F4: 20 | G4: m | N4: Fric | O4: =fricfac(O3,O1) -> 0.02856142312
N5: Hjælpestørrelser
B6: Sum zeta | F6: 5
B8: Hastighed | H8: =Beregning!J64/3600/(PI()/4*(F2/1000)^2) -> 0.9348601441
B10: Pdyn Pa | H10: =0.5*1000*H8^2 -> 436.9817446
B12: Tryktab enkeltmodstande Pa | H12: =H10*F6 -> 2184.908723
B14: Tryktab rør Pa | H14: =O4*F4/(F2/1000)*H10 -> 12480.8205
B16: Tryktab Pa | H16: =H12+H14 -> 14665.72923 | I16: = | J16: =H16/1000 -> 14.66572923 | K16: kPa | L16: = | M16: =J16/9.81 -> 1.494977495 | N16: mVS
B19: Varmepumpe kondensator | E19: 15 | F19: kPa
B20: Termostatventiler | E20: 10
B21: Hovedledning | E21: =J16 -> 14.66572923
B22: Sum | E22: =SUM(E19:E21) -> 39.66572923
B23: Sikkerhed +50% | E23: =E22*1.5 -> 59.49859384
B25: Pumpecheck, se fx Grundfos webcaps eller Wilo.com:
B27: Flow | C27: =MAX(Beregning!J64,Beregning!J66) -> 1.251768135 | D27: m3/h
B28: Tryk | C28: =E23 -> 59.49859384
J30: 25-6
J41: 25/60

Sheet Info
B2: Info

Sheet Heat emitters
B2: =IF(AR5="Dansk","Opmåling af radiatorers (varmegiveres) og gulvvarmes ydelse","Measuring the performance (thermal output) of radiators (emitters) and underfloor heating") -> Measuring the performance (thermal output) of radiators (emitters) and underfloor heating
B5: =IF(AR5="Dansk","Dimensionerende fremløbstemperatur","Design forward temperature") -> Design forward temperature | G5: 60 | J5: °C | Z5: =IF(AR5="Dansk","Samlet reference ydelse","Total reference performance") -> Total reference performance | AB5: =IF(AR5="Dansk","Samlet design ydelse","Total design performance") -> Total design performance | AM5: =IF(AR5="Dansk","Vælg sprog","Choose language") -> Choose language | AR5: Engelsk
B7: =IF(AR5="Dansk","Dimensionerende returtemperatur","Design return temperature") -> Design return temperature | G7: 40 | J7: °C
B9: =IF(AR5="Dansk","Dimensionerende rumtemperatur","Design room temperature") -> Design room temperature | G9: 20 | J9: °C | Z9: =SUM(Z17:Z41) -> 12192.06628 | AB9: =SUM(AB17:AB41) -> 5069.326325
B12: =IF(AR5="Dansk","Rum","Room") -> Room | D12: Type | J12: =IF(AR5="Dansk","Panelradiator/konvektor","Panel radiator/convector") -> Panel radiator/convector | P12: =IF(AR5="Dansk","Planradiator","Planar radiator") -> Planar radiator | T12: =IF(AR5="Dansk","Søjleradiator","Column radiator") -> Column radiator | X12: =IF(AR5="Dansk","Gulvvarme","Underfloor heating") -> Underfloor heating | Z12: =IF(AR5="Dansk","Reference ydelse","Reference performance") -> Reference performance | AB12: =IF(AR5="Dansk","Design ydelse","Design performance") -> Design performance | BE12: 1. plade | BF12: 2. plade | BG12: 3. plade | BH12: 1. konvektorblik | BI12: 2. til … konvektorblik | BJ12: randeffekt | BL12: 1. plade | BM12: 2. plade | BN12: 3. plade | BO12: konvektorer | BQ12: enkelt | BR12: dobbelt | BY12: konvektor | BZ12: Plan | CA12: søjle | CB12: gulvvarme
AM13: Kedeltype | AO13: Type | AQ13: Panel | AS13: Konvektor | AU13: Plan | AW13: Sprog
G14: =IF(AR5="Dansk","Højde","Height") -> Height | J14: =IF(AR5="Dansk","Bredde/længde","With/Length") -> With/Length | L14: =IF(AR5="Dansk","Antal paneler","Number of panels") -> Number of panels | N14: =IF(AR5="Dansk","Konvektorslør","Convector veiling") -> Convector veiling | P14: =IF(AR5="Dansk","Dybde","Debth") -> Debth | R14: Type | T14: =IF(AR5="Dansk","Søjlens dybde","Column debth") -> Column debth | V14: =IF(AR5="Dansk","Antal elementer","Number of elements") -> Number of elements | X14: =IF(AR5="Dansk","Areal","Area") -> Area | Z14: =IF(AR5="Dansk","Ved 90/70/20 °C","At 90/70/20 °C") -> At 90/70/20 °C | AB14: =IF(AR5="Dansk","Ved middeltemp.","At middle temp.") -> At middle temp. | AS14: 0
G15: cm | J15: cm | L15: =IF(AR5="Dansk","stk.","pieces") -> pieces | N15: =IF(AR5="Dansk","stk.","pieces") -> pieces | P15: mm | R15: =IF(AR5="Dansk","Antal lag","Number of plates") -> Number of plates | T15: mm | V15: =IF(AR5="Dansk","stk.","pieces") -> pieces | X15: m² | Z15: Watt | AB15: Watt | AM15: Gaskedel | AO15: =IF(AR5="Dansk","Panelradiator","Panel radiator/convector") -> Panel radiator/convector | AQ15: 1 | AS15: 1 | AU15: enkelt | AW15: Dansk | BV15: =SUM(BV17:BV98) -> 500
AM16: Oliefyr | AO16: =IF(AR5="Dansk","Søjleradiator","Column radiator") -> Column radiator | AQ16: 2 | AS16: 2 | AU16: dobbelt | AW16: Engelsk
B17: Living room 1 | D17: Column radiator | E17: =G17/100 -> 0.37 | G17: 37 | H17: =J17/100 -> 0 | L17: 2 | N17: 2 | P17: 58 | R17: dobbelt | T17: 190 | V17: 29 | X17: 6 | Z17: =IF(SUM(BD17:BV17)=0," ",IF(CF17="Gulvvarme",SUM(BD17:BV17),SUM(BD17:BV17)*((Beregn!C5)/Beregn!C5)^1.3)) ->  | AB17: =IF(SUM(BD17:BV17)=0," ",IF(CF17="Gulvvarme",SUM(BD17:BV17),SUM(BD17:BV17)*((Beregn!J5)/Beregn!C5)^1.3)) ->  | AO17: =IF(AR5="Dansk","Planradiator","Planar radiator") -> Planar radiator | AQ17: 3 | AS17: 3 | AZ17: =100*($CF17<>"Gulvvarme")*($CF17<>0) -> 100 | BA17: =IF($CF17<>"Planradiator","enkelt","") -> enkelt | BB17: =IF($CF17<>"Planradiator","dobbelt","") -> dobbelt | BC17: ="" ->  | BD17: ="" ->  | BE17: =IF($CF17="Panelradiator",$E17*$H17*(-132.68*($E17^3)+801.68*($E17^2)-1099.6*$E17+1790.8),0) -> 0 | BF17: =IF($CF17="Panelradiator",IF($L17>1,$E17*$H17*(-4178.9*($E17^3)+7784.1*($E17^2)-4877.7*$E17+2023.7),0)) -> FALSE | BG17: =IF($CF17="Panelradiator",IF($L17>2,($L17-2)*$E17*$H17*(2439.3*($E17^3)-3252.2*($E17^2)+583.01*$E17+1150.4),0)) -> FALSE | BH17: =IF($CF17="Panelradiator",IF($N17>0.5,$E17*$H17*(-1085.5*($E17^3)+1428.6*($E17^2)-532.97*$E17+688.74),0),0) -> 0 | BI17: =IF($CF17="Panelradiator",IF($N17>1.5,($N17-1)*$E17*$H17*(6322*($E17^3)-12424*($E17^2)+7584.6*$E17-593.91),0),0) -> 0 | BJ17: =IF($CF17="Panelradiator",IF($L17>$N17,IF($N17>0.5,$H17*40,0),0),0) -> 0 | BL17: =IF($CF17="Konvektor",$E17*$H17*457.27*($E17^-0.5155),0) -> 0 | BM17: =IF($CF17="Konvektor",IF($L17>1,$E17*$H17*355.73*($E17^-0.4981),0)) -> FALSE | BN17: =IF($CF17="Konvektor",IF($L17>2,($L17-2)*$E17*$H17*152.96*($E17^-0.8625),0),0) -> 0 | BO17: =IF($CF17="Konvektor",$N17*$E17*$H17*455.51*($E17^-0.5469),0) -> 0 | BQ17: =IF($CF17="Planradiator",IF($R17="enkelt",$E17*$H17*(-488.27*($E17^3)+1099.6*($E17^2)-835.09*$E17+394.42)*($P17^0.605),0)) -> FALSE | BR17: =IF($CF17="Planradiator",IF($R17="dobbelt",$E17*$H17*(-23.595*($E17^3)+70.632*($E17^2)-120.62*$E17+202.02)*($P17^0.725),0),0) -> 0 | BT17: =IF($CF17="søjleradiator",0.83*V17*(957.42*$T17/1000*$E17+18.244),0) -> 0 | BV17: =IF($CF17="Gulvvarme",$X17*50,0) -> 0 | BY17: =IF($CF17="Konvektor",-999999999,IF($CF17="Panelradiator",-999999999,999999999)) -> 999999999 | BZ17: =IF($CF17="Planradiator",-999999999,999999999) -> 999999999 | CA17: =IF($CF17="Søjleradiator",-999999999,999999999) -> 999999999 | CB17: =IF($CF17="Gulvvarme",-999999999,999999999) -> 999999999 | CC17: =+SUM(BD17:BV17) -> 0 | CF17: =IF(OR(D17="Panelradiator",D17="Panel radiator/convector"),"Panelradiator",IF(OR(D17="Søjleradiator",D17="Pillar radiator"),"Søjleradiator",IF(OR(D17="Planradiator",D17="Planar radiator"),"Planradiator",IF(OR(D17="Konvektor",D17="Convector"),"Konvektor",IF(OR(D17="Gulvvarme",D17="Underfloor heating"),"Gulvvarme"))))) -> FALSE
AO18: =IF(AR5="Dansk","Konvektor","Convector") -> Convector | AS18: 4
E19: 0.6 | G19: 60 | H19: =J19/100 -> 1.2 | J19: 120 | L19: 3 | N19: 3 | P19: 82 | R19: enkelt | T19: 230 | V19: 34 | X19: 6 | Z19: =IF(SUM(BD19:BV19)=0," ",IF(CF19="Gulvvarme",SUM(BD19:BV19),SUM(BD19:BV19)*((Beregn!C5)/Beregn!C5)^1.3)) ->  | AB19: =IF(SUM(BD19:BV19)=0," ",IF(CF19="Gulvvarme",SUM(BD19:BV19),SUM(BD19:BV19)*((Beregn!J5)/Beregn!C5)^1.3)) ->  | AO19: =IF(AR5="Dansk","Gulvvarme","Underfloor heating") -> Underfloor heating | AS19: 5 | AZ19: =100*($CF19<>"Gulvvarme")*($CF19<>0) -> 100 | BA19: =IF($CF19<>"Planradiator","enkelt","") -> enkelt | BB19: =IF($CF19<>"Planradiator","dobbelt","") -> dobbelt | BC19: =IF(D17<>"","","tom") ->  | BD19: =IF(B17<>"","","tom") ->  | BE19: =IF($CF19="Panelradiator",$E19*$H19*(-132.68*($E19^3)+801.68*($E19^2)-1099.6*$E19+1790.8),0) -> 0 | BF19: =IF($CF19="Panelradiator",IF($L19>1,$E19*$H19*(-4178.9*($E19^3)+7784.1*($E19^2)-4877.7*$E19+2023.7),0)) -> FALSE | BG19: =IF($CF19="Panelradiator",IF($L19>2,($L19-2)*$E19*$H19*(2439.3*($E19^3)-3252.2*($E19^2)+583.01*$E19+1150.4),0)) -> FALSE | BH19: =IF($CF19="Panelradiator",IF($N19>0.5,$E19*$H19*(-1085.5*($E19^3)+1428.6*($E19^2)-532.97*$E19+688.74),0),0) -> 0 | BI19: =IF($CF19="Panelradiator",IF($N19>1.5,($N19-1)*$E19*$H19*(6322*($E19^3)-12424*($E19^2)+7584.6*$E19-593.91),0),0) -> 0 | BJ19: =IF($CF19="Panelradiator",IF($L19>$N19,IF($N19>0.5,$H19*40,0),0),0) -> 0 | BL19: =IF($CF19="Konvektor",$E19*$H19*457.27*($E19^-0.5155),0) -> 0 | BM19: =IF($CF19="Konvektor",IF($L19>1,$E19*$H19*355.73*($E19^-0.4981),0)) -> FALSE | BN19: =IF($CF19="Konvektor",IF($L19>2,($L19-2)*$E19*$H19*152.96*($E19^-0.8625),0),0) -> 0 | BO19: =IF($CF19="Konvektor",$N19*$E19*$H19*455.51*($E19^-0.5469),0) -> 0 | BQ19: =IF($CF19="Planradiator",IF($R19="enkelt",$E19*$H19*(-488.27*($E19^3)+1099.6*($E19^2)-835.09*$E19+394.42)*($P19^0.605),0)) -> FALSE | BR19: =IF($CF19="Planradiator",IF($R19="dobbelt",$E19*$H19*(-23.595*($E19^3)+70.632*($E19^2)-120.62*$E19+202.02)*($P19^0.725),0),0) -> 0 | BT19: =IF($CF19="søjleradiator",0.83*V19*(957.42*$T19/1000*$E19+18.244),0) -> 0 | BV19: =IF($CF19="Gulvvarme",$X19*50,0) -> 0 | BY19: =IF($CF19="Konvektor",-999999999,IF($CF19="Panelradiator",-999999999,999999999)) -> 999999999 | BZ19: =IF($CF19="Planradiator",-999999999,999999999) -> 999999999 | CA19: =IF($CF19="Søjleradiator",-999999999,999999999) -> 999999999 | CB19: =IF($CF19="Gulvvarme",-999999999,999999999) -> 999999999 | CF19: =IF(OR(D19="Panelradiator",D19="Panel radiator/convector"),"Panelradiator",IF(OR(D19="Søjleradiator",D19="Pillar radiator"),"Søjleradiator",IF(OR(D19="Planradiator",D19="Planar radiator"),"Planradiator",IF(OR(D19="Konvektor",D19="Convector"),"Konvektor",IF(OR(D19="Gulvvarme",D19="Underfloor heating"),"Gulvvarme"))))) -> FALSE
AS20: 6
B21: Bathroom 1 | D21: Panel radiator/convector | E21: 0.6 | G21: 60 | H21: =J21/100 -> 2 | J21: 200 | L21: 2 | N21: 2 | P21: 55 | R21: enkelt | T21: 230 | V21: 34 | X21: 20 | Z21: =IF(SUM(BD21:BV21)=0," ",IF(CF21="Gulvvarme",SUM(BD21:BV21),SUM(BD21:BV21)*((Beregn!C5)/Beregn!C5)^1.3)) -> 4663.497024 | AB21: =IF(SUM(BD21:BV21)=0," ",IF(CF21="Gulvvarme",SUM(BD21:BV21),SUM(BD21:BV21)*((Beregn!J5)/Beregn!C5)^1.3)) -> 1822.521289 | AZ21: =100*($CF21<>"Gulvvarme")*($CF21<>0) -> 100 | BA21: =IF($CF21<>"Planradiator","enkelt","") -> enkelt | BB21: =IF($CF21<>"Planradiator","dobbelt","") -> dobbelt | BC21: =IF(D19<>"","","tom") -> tom | BD21: =IF(B19<>"","","tom") -> tom | BE21: =IF($CF21="Panelradiator",$E21*$H21*(-132.68*($E21^3)+801.68*($E21^2)-1099.6*$E21+1790.8),0) -> 1669.183104 | BF21: =IF($CF21="Panelradiator",IF($L21>1,$E21*$H21*(-4178.9*($E21^3)+7784.1*($E21^2)-4877.7*$E21+2023.7),0)) -> 1196.05632 | BG21: =IF($CF21="Panelradiator",IF($L21>2,($L21-2)*$E21*$H21*(2439.3*($E21^3)-3252.2*($E21^2)+583.01*$E21+1150.4),0)) -> 0 | BH21: =IF($CF21="Panelradiator",IF($N21>0.5,$E21*$H21*(-1085.5*($E21^3)+1428.6*($E21^2)-532.97*$E21+688.74),0),0) -> 778.5432 | BI21: =IF($CF21="Panelradiator",IF($N21>1.5,($N21-1)*$E21*$H21*(6322*($E21^3)-12424*($E21^2)+7584.6*$E21-593.91),0),0) -> 1019.7144 | BJ21: =IF($CF21="Panelradiator",IF($L21>$N21,IF($N21>0.5,$H21*40,0),0),0) -> 0 | BL21: =IF($CF21="Konvektor",$E21*$H21*457.27*($E21^-0.5155),0) -> 0 | BM21: =IF($CF21="Konvektor",IF($L21>1,$E21*$H21*355.73*($E21^-0.4981),0)) -> FALSE | BN21: =IF($CF21="Konvektor",IF($L21>2,($L21-2)*$E21*$H21*152.96*($E21^-0.8625),0),0) -> 0 | BO21: =IF($CF21="Konvektor",$N21*$E21*$H21*455.51*($E21^-0.5469),0) -> 0 | BQ21: =IF($CF21="Planradiator",IF($R21="enkelt",$E21*$H21*(-488.27*($E21^3)+1099.6*($E21^2)-835.09*$E21+394.42)*($P21^0.605),0)) -> FALSE | BR21: =IF($CF21="Planradiator",IF($R21="dobbelt",$E21*$H21*(-23.595*($E21^3)+70.632*($E21^2)-120.62*$E21+202.02)*($P21^0.725),0),0) -> 0 | BT21: =IF($CF21="søjleradiator",0.83*V21*(957.42*$T21/1000*$E21+18.244),0) -> 0 | BV21: =IF($CF21="Gulvvarme",$X21*50,0) -> 0 | BY21: =IF($CF21="Konvektor",-999999999,IF($CF21="Panelradiator",-999999999,999999999)) -> -999999999 | BZ21: =IF($CF21="Planradiator",-999999999,999999999) -> 999999999 | CA21: =IF($CF21="Søjleradiator",-999999999,999999999) -> 999999999 | CB21: =IF($CF21="Gulvvarme",-999999999,999999999) -> 999999999 | CF21: =IF(OR(D21="Panelradiator",D21="Panel radiator/convector"),"Panelradiator",IF(OR(D21="Søjleradiator",D21="Pillar radiator"),"Søjleradiator",IF(OR(D21="Planradiator",D21="Planar radiator"),"Planradiator",IF(OR(D21="Konvektor",D21="Convector"),"Konvektor",IF(OR(D21="Gulvvarme",D21="Underfloor heating"),"Gulvvarme"))))) -> Panelradiator
B23: Bathroom 2 | D23: Underfloor heating | E23: 0.14 | G23: 14 | H23: =J23/100 -> 2 | J23: 200 | L23: 1 | N23: 2 | P23: 82 | R23: enkelt | T23: 230 | V23: 34 | X23: 10 | Z23: =IF(SUM(BD23:BV23)=0," ",IF(CF23="Gulvvarme",SUM(BD23:BV23),SUM(BD23:BV23)*((Beregn!C5)/Beregn!C5)^1.3)) -> 500 | AB23: =IF(SUM(BD23:BV23)=0," ",IF(CF23="Gulvvarme",SUM(BD23:BV23),SUM(BD23:BV23)*((Beregn!J5)/Beregn!C5)^1.3)) -> 500 | AZ23: =100*($CF23<>"Gulvvarme")*($CF23<>0) -> 0 | BA23: =IF($CF23<>"Planradiator","enkelt","") -> enkelt | BB23: =IF($CF23<>"Planradiator","dobbelt","") -> dobbelt | BC23: =IF(D21<>"","","tom") ->  | BD23: =IF(B21<>"","","tom") ->  | BE23: =IF($CF23="Panelradiator",$E23*$H23*(-132.68*($E23^3)+801.68*($E23^2)-1099.6*$E23+1790.8),0) -> 0 | BF23: =IF($CF23="Panelradiator",IF($L23>1,$E23*$H23*(-4178.9*($E23^3)+7784.1*($E23^2)-4877.7*$E23+2023.7),0)) -> FALSE | BG23: =IF($CF23="Panelradiator",IF($L23>2,($L23-2)*$E23*$H23*(2439.3*($E23^3)-3252.2*($E23^2)+583.01*$E23+1150.4),0)) -> FALSE | BH23: =IF($CF23="Panelradiator",IF($N23>0.5,$E23*$H23*(-1085.5*($E23^3)+1428.6*($E23^2)-532.97*$E23+688.74),0),0) -> 0 | BI23: =IF($CF23="Panelradiator",IF($N23>1.5,($N23-1)*$E23*$H23*(6322*($E23^3)-12424*($E23^2)+7584.6*$E23-593.91),0),0) -> 0 | BJ23: =IF($CF23="Panelradiator",IF($L23>$N23,IF($N23>0.5,$H23*40,0),0),0) -> 0 | BL23: =IF($CF23="Konvektor",$E23*$H23*457.27*($E23^-0.5155),0) -> 0 | BM23: =IF($CF23="Konvektor",IF($L23>1,$E23*$H23*355.73*($E23^-0.4981),0)) -> FALSE | BN23: =IF($CF23="Konvektor",IF($L23>2,($L23-2)*$E23*$H23*152.96*($E23^-0.8625),0),0) -> 0 | BO23: =IF($CF23="Konvektor",$N23*$E23*$H23*455.51*($E23^-0.5469),0) -> 0 | BQ23: =IF($CF23="Planradiator",IF($R23="enkelt",$E23*$H23*(-488.27*($E23^3)+1099.6*($E23^2)-835.09*$E23+394.42)*($P23^0.605),0)) -> FALSE | BR23: =IF($CF23="Planradiator",IF($R23="dobbelt",$E23*$H23*(-23.595*($E23^3)+70.632*($E23^2)-120.62*$E23+202.02)*($P23^0.725),0),0) -> 0 | BT23: =IF($CF23="søjleradiator",0.83*V23*(957.42*$T23/1000*$E23+18.244),0) -> 0 | BV23: =IF($CF23="Gulvvarme",$X23*50,0) -> 500 | BY23: =IF($CF23="Konvektor",-999999999,IF($CF23="Panelradiator",-999999999,999999999)) -> 999999999 | BZ23: =IF($CF23="Planradiator",-999999999,999999999) -> 999999999 | CA23: =IF($CF23="Søjleradiator",-999999999,999999999) -> 999999999 | CB23: =IF($CF23="Gulvvarme",-999999999,999999999) -> -999999999 | CF23: =IF(OR(D23="Panelradiator",D23="Panel radiator/convector"),"Panelradiator",IF(OR(D23="Søjleradiator",D23="Pillar radiator"),"Søjleradiator",IF(OR(D23="Planradiator",D23="Planar radiator"),"Planradiator",IF(OR(D23="Konvektor",D23="Convector"),"Konvektor",IF(OR(D23="Gulvvarme",D23="Underfloor heating"),"Gulvvarme"))))) -> Gulvvarme
P25: 55 | R25: enkelt | T25: 155 | V25: 1 | X25: 6 | Z25: =IF(SUM(BD25:BV25)=0," ",IF(CF25="Gulvvarme",SUM(BD25:BV25),SUM(BD25:BV25)*((Beregn!C5)/Beregn!C5)^1.3)) ->  | AB25: =IF(SUM(BD25:BV25)=0," ",IF(CF25="Gulvvarme",SUM(BD25:BV25),SUM(BD25:BV25)*((Beregn!J5)/Beregn!C5)^1.3)) ->  | AZ25: =100*($CF25<>"Gulvvarme")*($CF25<>0) -> 100 | BA25: =IF($CF25<>"Planradiator","enkelt","") -> enkelt | BB25: =IF($CF25<>"Planradiator","dobbelt","") -> dobbelt | BC25: =IF(D23<>"","","tom") ->  | BD25: =IF(B23<>"","","tom") ->  | BE25: =IF($CF25="Panelradiator",$E25*$H25*(-132.68*($E25^3)+801.68*($E25^2)-1099.6*$E25+1790.8),0) -> 0 | BF25: =IF($CF25="Panelradiator",IF($L25>1,$E25*$H25*(-4178.9*($E25^3)+7784.1*($E25^2)-4877.7*$E25+2023.7),0)) -> FALSE | BG25: =IF($CF25="Panelradiator",IF($L25>2,($L25-2)*$E25*$H25*(2439.3*($E25^3)-3252.2*($E25^2)+583.01*$E25+1150.4),0)) -> FALSE | BH25: =IF($CF25="Panelradiator",IF($N25>0.5,$E25*$H25*(-1085.5*($E25^3)+1428.6*($E25^2)-532.97*$E25+688.74),0),0) -> 0 | BI25: =IF($CF25="Panelradiator",IF($N25>1.5,($N25-1)*$E25*$H25*(6322*($E25^3)-12424*($E25^2)+7584.6*$E25-593.91),0),0) -> 0 | BJ25: =IF($CF25="Panelradiator",IF($L25>$N25,IF($N25>0.5,$H25*40,0),0),0) -> 0 | BL25: =IF($CF25="Konvektor",$E25*$H25*457.27*($E25^-0.5155),0) -> 0 | BM25: =IF($CF25="Konvektor",IF($L25>1,$E25*$H25*355.73*($E25^-0.4981),0)) -> FALSE | BN25: =IF($CF25="Konvektor",IF($L25>2,($L25-2)*$E25*$H25*152.96*($E25^-0.8625),0),0) -> 0 | BO25: =IF($CF25="Konvektor",$N25*$E25*$H25*455.51*($E25^-0.5469),0) -> 0 | BQ25: =IF($CF25="Planradiator",IF($R25="enkelt",$E25*$H25*(-488.27*($E25^3)+1099.6*($E25^2)-835.09*$E25+394.42)*($P25^0.605),0)) -> FALSE | BR25: =IF($CF25="Planradiator",IF($R25="dobbelt",$E25*$H25*(-23.595*($E25^3)+70.632*($E25^2)-120.62*$E25+202.02)*($P25^0.725),0),0) -> 0 | BT25: =IF($CF25="søjleradiator",0.83*V25*(957.42*$T25/1000*$E25+18.244),0) -> 0 | BV25: =IF($CF25="Gulvvarme",$X25*50,0) -> 0 | BY25: =IF($CF25="Konvektor",-999999999,IF($CF25="Panelradiator",-999999999,999999999)) -> 999999999 | BZ25: =IF($CF25="Planradiator",-999999999,999999999) -> 999999999 | CA25: =IF($CF25="Søjleradiator",-999999999,999999999) -> 999999999 | CB25: =IF($CF25="Gulvvarme",-999999999,999999999) -> 999999999 | CF25: =IF(OR(D25="Panelradiator",D25="Panel radiator/convector"),"Panelradiator",IF(OR(D25="Søjleradiator",D25="Pillar radiator"),"Søjleradiator",IF(OR(D25="Planradiator",D25="Planar radiator"),"Planradiator",IF(OR(D25="Konvektor",D25="Convector"),"Konvektor",IF(OR(D25="Gulvvarme",D25="Underfloor heating"),"Gulvvarme"))))) -> FALSE
B27: Bedroom | D27: Planar radiator | E27: 0.45 | G27: 45 | H27: =J27/100 -> 1.2 | J27: 120 | L27: 2 | N27: 2 | P27: 82 | R27: dobbelt | T27: 230 | V27: 34 | X27: 40 | Z27: =IF(SUM(BD27:BV27)=0," ",IF(CF27="Gulvvarme",SUM(BD27:BV27),SUM(BD27:BV27)*((Beregn!C5)/Beregn!C5)^1.3)) -> 2107.36935 | AB27: =IF(SUM(BD27:BV27)=0," ",IF(CF27="Gulvvarme",SUM(BD27:BV27),SUM(BD27:BV27)*((Beregn!J5)/Beregn!C5)^1.3)) -> 823.571986 | AZ27: =100*($CF27<>"Gulvvarme")*($CF27<>0) -> 100 | BA27: =IF($CF27<>"Planradiator","enkelt","") ->  | BB27: =IF($CF27<>"Planradiator","dobbelt","") ->  | BC27: =IF(D25<>"","","tom") -> tom | BD27: =IF(B25<>"","","tom") -> tom | BE27: =IF($CF27="Panelradiator",$E27*$H27*(-132.68*($E27^3)+801.68*($E27^2)-1099.6*$E27+1790.8),0) -> 0 | BF27: =IF($CF27="Panelradiator",IF($L27>1,$E27*$H27*(-4178.9*($E27^3)+7784.1*($E27^2)-4877.7*$E27+2023.7),0)) -> FALSE | BG27: =IF($CF27="Panelradiator",IF($L27>2,($L27-2)*$E27*$H27*(2439.3*($E27^3)-3252.2*($E27^2)+583.01*$E27+1150.4),0)) -> FALSE | BH27: =IF($CF27="Panelradiator",IF($N27>0.5,$E27*$H27*(-1085.5*($E27^3)+1428.6*($E27^2)-532.97*$E27+688.74),0),0) -> 0 | BI27: =IF($CF27="Panelradiator",IF($N27>1.5,($N27-1)*$E27*$H27*(6322*($E27^3)-12424*($E27^2)+7584.6*$E27-593.91),0),0) -> 0 | BJ27: =IF($CF27="Panelradiator",IF($L27>$N27,IF($N27>0.5,$H27*40,0),0),0) -> 0 | BL27: =IF($CF27="Konvektor",$E27*$H27*457.27*($E27^-0.5155),0) -> 0 | BM27: =IF($CF27="Konvektor",IF($L27>1,$E27*$H27*355.73*($E27^-0.4981),0)) -> FALSE | BN27: =IF($CF27="Konvektor",IF($L27>2,($L27-2)*$E27*$H27*152.96*($E27^-0.8625),0),0) -> 0 | BO27: =IF($CF27="Konvektor",$N27*$E27*$H27*455.51*($E27^-0.5469),0) -> 0 | BQ27: =IF($CF27="Planradiator",IF($R27="enkelt",$E27*$H27*(-488.27*($E27^3)+1099.6*($E27^2)-835.09*$E27+394.42)*($P27^0.605),0)) -> 0 | BR27: =IF($CF27="Planradiator",IF($R27="dobbelt",$E27*$H27*(-23.595*($E27^3)+70.632*($E27^2)-120.62*$E27+202.02)*($P27^0.725),0),0) -> 2107.36935 | BT27: =IF($CF27="søjleradiator",0.83*V27*(957.42*$T27/1000*$E27+18.244),0) -> 0 | BV27: =IF($CF27="Gulvvarme",$X27*50,0) -> 0 | BY27: =IF($CF27="Konvektor",-999999999,IF($CF27="Panelradiator",-999999999,999999999)) -> 999999999 | BZ27: =IF($CF27="Planradiator",-999999999,999999999) -> -999999999 | CA27: =IF($CF27="Søjleradiator",-999999999,999999999) -> 999999999 | CB27: =IF($CF27="Gulvvarme",-999999999,999999999) -> 999999999 | CF27: =IF(OR(D27="Panelradiator",D27="Panel radiator/convector"),"Panelradiator",IF(OR(D27="Søjleradiator",D27="Pillar radiator"),"Søjleradiator",IF(OR(D27="Planradiator",D27="Planar radiator"),"Planradiator",IF(OR(D27="Konvektor",D27="Convector"),"Konvektor",IF(OR(D27="Gulvvarme",D27="Underfloor heating"),"Gulvvarme"))))) -> Planradiator
B29: Home office | D29: Panel radiator/convector | E29: 0.6 | G29: 60 | H29: =J29/100 -> 1 | J29: 100 | L29: 2 | N29: 2 | P29: 55 | R29: enkelt | T29: 230 | V29: 34 | X29: 6 | Z29: =IF(SUM(BD29:BV29)=0," ",IF(CF29="Gulvvarme",SUM(BD29:BV29),SUM(BD29:BV29)*((Beregn!C5)/Beregn!C5)^1.3)) -> 2331.748512 | AB29: =IF(SUM(BD29:BV29)=0," ",IF(CF29="Gulvvarme",SUM(BD29:BV29),SUM(BD29:BV29)*((Beregn!J5)/Beregn!C5)^1.3)) -> 911.2606447 | AZ29: =100*($CF29<>"Gulvvarme")*($CF29<>0) -> 100 | BA29: =IF($CF29<>"Planradiator","enkelt","") -> enkelt | BB29: =IF($CF29<>"Planradiator","dobbelt","") -> dobbelt | BC29: =IF(D27<>"","","tom") ->  | BD29: =IF(B27<>"","","tom") ->  | BE29: =IF($CF29="Panelradiator",$E29*$H29*(-132.68*($E29^3)+801.68*($E29^2)-1099.6*$E29+1790.8),0) -> 834.591552 | BF29: =IF($CF29="Panelradiator",IF($L29>1,$E29*$H29*(-4178.9*($E29^3)+7784.1*($E29^2)-4877.7*$E29+2023.7),0)) -> 598.02816 | BG29: =IF($CF29="Panelradiator",IF($L29>2,($L29-2)*$E29*$H29*(2439.3*($E29^3)-3252.2*($E29^2)+583.01*$E29+1150.4),0)) -> 0 | BH29: =IF($CF29="Panelradiator",IF($N29>0.5,$E29*$H29*(-1085.5*($E29^3)+1428.6*($E29^2)-532.97*$E29+688.74),0),0) -> 389.2716 | BI29: =IF($CF29="Panelradiator",IF($N29>1.5,($N29-1)*$E29*$H29*(6322*($E29^3)-12424*($E29^2)+7584.6*$E29-593.91),0),0) -> 509.8572 | BJ29: =IF($CF29="Panelradiator",IF($L29>$N29,IF($N29>0.5,$H29*40,0),0),0) -> 0 | BL29: =IF($CF29="Konvektor",$E29*$H29*457.27*($E29^-0.5155),0) -> 0 | BM29: =IF($CF29="Konvektor",IF($L29>1,$E29*$H29*355.73*($E29^-0.4981),0)) -> FALSE | BN29: =IF($CF29="Konvektor",IF($L29>2,($L29-2)*$E29*$H29*152.96*($E29^-0.8625),0),0) -> 0 | BO29: =IF($CF29="Konvektor",$N29*$E29*$H29*455.51*($E29^-0.5469),0) -> 0 | BQ29: =IF($CF29="Planradiator",IF($R29="enkelt",$E29*$H29*(-488.27*($E29^3)+1099.6*($E29^2)-835.09*$E29+394.42)*($P29^0.605),0)) -> FALSE | BR29: =IF($CF29="Planradiator",IF($R29="dobbelt",$E29*$H29*(-23.595*($E29^3)+70.632*($E29^2)-120.62*$E29+202.02)*($P29^0.725),0),0) -> 0 | BT29: =IF($CF29="søjleradiator",0.83*V29*(957.42*$T29/1000*$E29+18.244),0) -> 0 | BV29: =IF($CF29="Gulvvarme",$X29*50,0) -> 0 | BY29: =IF($CF29="Konvektor",-999999999,IF($CF29="Panelradiator",-999999999,999999999)) -> -999999999 | BZ29: =IF($CF29="Planradiator",-999999999,999999999) -> 999999999 | CA29: =IF($CF29="Søjleradiator",-999999999,999999999) -> 999999999 | CB29: =IF($CF29="Gulvvarme",-999999999,999999999) -> 999999999 | CF29: =IF(OR(D29="Panelradiator",D29="Panel radiator/convector"),"Panelradiator",IF(OR(D29="Søjleradiator",D29="Pillar radiator"),"Søjleradiator",IF(OR(D29="Planradiator",D29="Planar radiator"),"Planradiator",IF(OR(D29="Konvektor",D29="Convector"),"Konvektor",IF(OR(D29="Gulvvarme",D29="Underfloor heating"),"Gulvvarme"))))) -> Panelradiator
E30: 0 | Z30: =IF(SUM(BD30:BV30)=0," ",IF(D30="gulvvarme",SUM(BD30:BV30),SUM(BD30:BV30)*((Beregning!J45-20)/Beregn!C5)^1.3)) ->  | AB30: =IF(SUM(BF30:BX30)=0," ",IF(F30="gulvvarme",SUM(BF30:BX30),SUM(BF30:BX30)*((Beregning!L45-20)/Beregn!E5)^1.3)) ->  | AZ30: =100*($CF30<>"Gulvvarme")*($CF30<>0) -> 0 | BA30: =IF($CF30<>"Planradiator","enkelt","") -> enkelt | BB30: =IF($CF30<>"Planradiator","dobbelt","") -> dobbelt | BC30: =IF(D29<>"","","tom") ->  | BD30: =IF(B29<>"","","tom") ->  | BE30: =IF($CF30="Panelradiator",$E30*$H30*(-132.68*($E30^3)+801.68*($E30^2)-1099.6*$E30+1790.8),0) -> 0 | BF30: =IF($CF30="Panelradiator",IF($L30>1,$E30*$H30*(-4178.9*($E30^3)+7784.1*($E30^2)-4877.7*$E30+2023.7),0)) -> FALSE | BG30: =IF($CF30="Panelradiator",IF($L30>2,($L30-2)*$E30*$H30*(2439.3*($E30^3)-3252.2*($E30^2)+583.01*$E30+1150.4),0)) -> FALSE | BH30: =IF($CF30="Panelradiator",IF($N30>0.5,$E30*$H30*(-1085.5*($E30^3)+1428.6*($E30^2)-532.97*$E30+688.74),0),0) -> 0 | BI30: =IF($CF30="Panelradiator",IF($N30>1.5,($N30-1)*$E30*$H30*(6322*($E30^3)-12424*($E30^2)+7584.6*$E30-593.91),0),0) -> 0 | BJ30: =IF($CF30="Panelradiator",IF($L30>$N30,IF($N30>0.5,$H30*40,0),0),0) -> 0 | BL30: =IF($CF30="Konvektor",$E30*$H30*457.27*($E30^-0.5155),0) -> 0 | BM30: =IF($CF30="Konvektor",IF($L30>1,$E30*$H30*355.73*($E30^-0.4981),0)) -> FALSE | BN30: =IF($CF30="Konvektor",IF($L30>2,($L30-2)*$E30*$H30*152.96*($E30^-0.8625),0),0) -> 0 | BO30: =IF($CF30="Konvektor",$N30*$E30*$H30*455.51*($E30^-0.5469),0) -> 0 | BQ30: =IF($CF30="Planradiator",IF($R30="enkelt",$E30*$H30*(-488.27*($E30^3)+1099.6*($E30^2)-835.09*$E30+394.42)*($P30^0.605),0)) -> FALSE | BR30: =IF($CF30="Planradiator",IF($R30="dobbelt",$E30*$H30*(-23.595*($E30^3)+70.632*($E30^2)-120.62*$E30+202.02)*($P30^0.725),0),0) -> 0 | BT30: =IF($CF30="søjleradiator",0.83*V30*(957.42*$T30/1000*$E30+18.244),0) -> 0 | BV30: =IF($CF30="Gulvvarme",$X30*50,0) -> 0 | BY30: =IF($CF30="Konvektor",-999999999,IF($CF30="Panelradiator",-999999999,999999999)) -> 999999999 | BZ30: =IF($CF30="Planradiator",-999999999,999999999) -> 999999999 | CA30: =IF($CF30="Søjleradiator",-999999999,999999999) -> 999999999 | CB30: =IF($CF30="Gulvvarme",-999999999,999999999) -> 999999999
B31: Children's room 1 | D31: Convector | E31: 0.14 | G31: 14 | H31: =J31/100 -> 2 | J31: 200 | L31: 2 | N31: 2 | P31: 55 | R31: enkelt | T31: 230 | V31: 34 | X31: 6 | Z31: =IF(SUM(BD31:BV31)=0," ",IF(CF31="Gulvvarme",SUM(BD31:BV31),SUM(BD31:BV31)*((Beregn!C5)/Beregn!C5)^1.3)) -> 1365.588245 | AB31: =IF(SUM(BD31:BV31)=0," ",IF(CF31="Gulvvarme",SUM(BD31:BV31),SUM(BD31:BV31)*((Beregn!J5)/Beregn!C5)^1.3)) -> 533.6796906 | AZ31: 100 | BA31: enkelt | BB31: dobbelt | BC31: tom | BD31: tom | BE31: 0 | BF31: FALSE | BG31: FALSE | BH31: 0 | BI31: 0 | BJ31: 0 | BL31: 352.7781989 | BM31: 265.2113762 | BN31: 0 | BO31: 747.5986698 | BQ31: FALSE | BR31: 0 | BT31: 0 | BV31: 0 | BY31: -999999999 | BZ31: 999999999 | CA31: 999999999 | CB31: 999999999 | CF31: =IF(OR(D31="Panelradiator",D31="Panel radiator/convector"),"Panelradiator",IF(OR(D31="Søjleradiator",D31="Pillar radiator"),"Søjleradiator",IF(OR(D31="Planradiator",D31="Planar radiator"),"Planradiator",IF(OR(D31="Konvektor",D31="Convector"),"Konvektor",IF(OR(D31="Gulvvarme",D31="Underfloor heating"),"Gulvvarme"))))) -> Konvektor
E32: 0 | Z32: =IF(SUM(BD32:BV32)=0," ",IF(D32="gulvvarme",SUM(BD32:BV32),SUM(BD32:BV32)*((Beregning!J47-20)/Beregn!C7)^1.3)) ->  | AB32: =IF(SUM(BF32:BX32)=0," ",IF(F32="gulvvarme",SUM(BF32:BX32),SUM(BF32:BX32)*((Beregning!L47-20)/Beregn!E7)^1.3)) ->  | AZ32: 0 | BA32: enkelt | BB32: dobbelt | BE32: 0 | BF32: FALSE | BG32: FALSE | BH32: 0 | BI32: 0 | BJ32: 0 | BL32: 0 | BM32: FALSE | BN32: 0 | BO32: 0 | BQ32: FALSE | BR32: 0 | BT32: 0 | BV32: 0 | BY32: 999999999 | BZ32: 999999999 | CA32: 999999999 | CB32: 999999999
B33: Children's room 2 | D33: Panel radiator/convector | E33: 0.6 | G33: 60 | H33: =J33/100 -> 1 | J33: 100 | L33: 1 | N33: 1 | P33: 55 | R33: enkelt | T33: 230 | V33: 34 | X33: 6 | Z33: =IF(SUM(BD33:BV33)=0," ",IF(CF33="Gulvvarme",SUM(BD33:BV33),SUM(BD33:BV33)*((Beregn!C5)/Beregn!C5)^1.3)) -> 1223.863152 | AB33: =IF(SUM(BD33:BV33)=0," ",IF(CF33="Gulvvarme",SUM(BD33:BV33),SUM(BD33:BV33)*((Beregn!J5)/Beregn!C5)^1.3)) -> 478.2927143 | AZ33: 100 | BA33: enkelt | BB33: dobbelt | BC33: tom | BD33: tom | BE33: 834.591552 | BF33: 0 | BG33: 0 | BH33: 389.2716 | BI33: 0 | BJ33: 0 | BL33: 0 | BM33: FALSE | BN33: 0 | BO33: 0 | BQ33: FALSE | BR33: 0 | BT33: 0 | BV33: 0 | BY33: -999999999 | BZ33: 999999999 | CA33: 999999999 | CB33: 999999999 | CF33: =IF(OR(D33="Panelradiator",D33="Panel radiator/convector"),"Panelradiator",IF(OR(D33="Søjleradiator",D33="Pillar radiator"),"Søjleradiator",IF(OR(D33="Planradiator",D33="Planar radiator"),"Planradiator",IF(OR(D33="Konvektor",D33="Convector"),"Konvektor",IF(OR(D33="Gulvvarme",D33="Underfloor heating"),"Gulvvarme"))))) -> Panelradiator
E34: 0 | Z34: =IF(SUM(BD34:BV34)=0," ",IF(D34="gulvvarme",SUM(BD34:BV34),SUM(BD34:BV34)*((Beregning!J50-20)/Beregn!C9)^1.3)) ->  | AB34: =IF(SUM(BF34:BX34)=0," ",IF(F34="gulvvarme",SUM(BF34:BX34),SUM(BF34:BX34)*((Beregning!L50-20)/Beregn!E9)^1.3)) ->  | AZ34: 0 | BA34: enkelt | BB34: dobbelt | BE34: 0 | BF34: FALSE | BG34: FALSE | BH34: 0 | BI34: 0 | BJ34: 0 | BL34: 0 | BM34: FALSE | BN34: 0 | BO34: 0 | BQ34: FALSE | BR34: 0 | BT34: 0 | BV34: 0 | BY34: 999999999 | BZ34: 999999999 | CA34: 999999999 | CB34: 999999999
E35: 0.14 | G35: 14 | H35: =J35/100 -> 2 | J35: 200 | L35: 1 | N35: 2 | P35: 55 | R35: enkelt | X35: 6 | Z35: =IF(SUM(BD35:BV35)=0," ",IF(CF35="Gulvvarme",SUM(BD35:BV35),SUM(BD35:BV35)*((Beregn!C5)/Beregn!C5)^1.3)) ->  | AB35: =IF(SUM(BD35:BV35)=0," ",IF(CF35="Gulvvarme",SUM(BD35:BV35),SUM(BD35:BV35)*((Beregn!J5)/Beregn!C5)^1.3)) ->  | AZ35: 100 | BA35: enkelt | BB35: dobbelt | BC35: tom | BD35: tom | BE35: 0 | BF35: FALSE | BG35: FALSE | BH35: 0 | BI35: 0 | BJ35: 0 | BL35: 0 | BM35: FALSE | BN35: 0 | BO35: 0 | BQ35: FALSE | BR35: 0 | BT35: 0 | BV35: 0 | BY35: 999999999 | BZ35: 999999999 | CA35: 999999999 | CB35: 999999999 | CF35: =IF(OR(D35="Panelradiator",D35="Panel radiator/convector"),"Panelradiator",IF(OR(D35="Søjleradiator",D35="Pillar radiator"),"Søjleradiator",IF(OR(D35="Planradiator",D35="Planar radiator"),"Planradiator",IF(OR(D35="Konvektor",D35="Convector"),"Konvektor",IF(OR(D35="Gulvvarme",D35="Underfloor heating"),"Gulvvarme"))))) -> FALSE
E36: 0 | Z36: =IF(SUM(BD36:BV36)=0," ",IF(D36="gulvvarme",SUM(BD36:BV36),SUM(BD36:BV36)*((Beregning!J52-20)/Beregn!C11)^1.3)) ->  | AB36: =IF(SUM(BF36:BX36)=0," ",IF(F36="gulvvarme",SUM(BF36:BX36),SUM(BF36:BX36)*((Beregning!L52-20)/Beregn!E11)^1.3)) ->  | AZ36: 0 | BA36: enkelt | BB36: dobbelt | BC36: tom | BD36: tom | BE36: 0 | BF36: FALSE | BG36: FALSE | BH36: 0 | BI36: 0 | BJ36: 0 | BL36: 0 | BM36: FALSE | BN36: 0 | BO36: 0 | BQ36: FALSE | BR36: 0 | BT36: 0 | BV36: 0 | BY36: 999999999 | BZ36: 999999999 | CA36: 999999999 | CB36: 999999999
E37: 0.14 | G37: 14 | H37: =J37/100 -> 2 | J37: 200 | L37: 1 | N37: 2 | P37: 55 | R37: enkelt | T37: 230 | V37: 34 | X37: 6 | Z37: =IF(SUM(BD37:BV37)=0," ",IF(CF37="Gulvvarme",SUM(BD37:BV37),SUM(BD37:BV37)*((Beregn!C5)/Beregn!C5)^1.3)) ->  | AB37: =IF(SUM(BD37:BV37)=0," ",IF(CF37="Gulvvarme",SUM(BD37:BV37),SUM(BD37:BV37)*((Beregn!J5)/Beregn!C5)^1.3)) ->  | AZ37: 100 | BA37: enkelt | BB37: dobbelt | BC37: tom | BD37: tom | BE37: 0 | BF37: FALSE | BG37: FALSE | BH37: 0 | BI37: 0 | BJ37: 0 | BL37: 0 | BM37: FALSE | BN37: 0 | BO37: 0 | BQ37: FALSE | BR37: 0 | BT37: 0 | BV37: 0 | BY37: 999999999 | BZ37: 999999999 | CA37: 999999999 | CB37: 999999999 | CF37: =IF(OR(D37="Panelradiator",D37="Panel radiator/convector"),"Panelradiator",IF(OR(D37="Søjleradiator",D37="Pillar radiator"),"Søjleradiator",IF(OR(D37="Planradiator",D37="Planar radiator"),"Planradiator",IF(OR(D37="Konvektor",D37="Convector"),"Konvektor",IF(OR(D37="Gulvvarme",D37="Underfloor heating"),"Gulvvarme"))))) -> FALSE
E38: 0 | Z38: =IF(SUM(BD38:BV38)=0," ",IF(D38="gulvvarme",SUM(BD38:BV38),SUM(BD38:BV38)*((Beregning!J54-20)/Beregn!C13)^1.3)) ->  | AB38: =IF(SUM(BF38:BX38)=0," ",IF(F38="gulvvarme",SUM(BF38:BX38),SUM(BF38:BX38)*((Beregning!L54-20)/Beregn!E13)^1.3)) ->  | AZ38: 0 | BA38: enkelt | BB38: dobbelt | BC38: tom | BD38: tom | BE38: 0 | BF38: FALSE | BG38: FALSE | BH38: 0 | BI38: 0 | BJ38: 0 | BL38: 0 | BM38: FALSE | BN38: 0 | BO38: 0 | BQ38: FALSE | BR38: 0 | BT38: 0 | BV38: 0 | BY38: 999999999 | BZ38: 999999999 | CA38: 999999999 | CB38: 999999999
E39: 0.14 | G39: 14 | H39: =J39/100 -> 2 | J39: 200 | L39: 1 | N39: 2 | P39: 55 | R39: enkelt | T39: 230 | V39: 34 | X39: 6 | Z39: =IF(SUM(BD39:BV39)=0," ",IF(CF39="Gulvvarme",SUM(BD39:BV39),SUM(BD39:BV39)*((Beregn!C5)/Beregn!C5)^1.3)) ->  | AB39: =IF(SUM(BD39:BV39)=0," ",IF(CF39="Gulvvarme",SUM(BD39:BV39),SUM(BD39:BV39)*((Beregn!J5)/Beregn!C5)^1.3)) ->  | AZ39: 100 | BA39: enkelt | BB39: dobbelt | BC39: tom | BD39: tom | BE39: 0 | BF39: FALSE | BG39: FALSE | BH39: 0 | BI39: 0 | BJ39: 0 | BL39: 0 | BM39: FALSE | BN39: 0 | BO39: 0 | BQ39: FALSE | BR39: 0 | BT39: 0 | BV39: 0 | BY39: 999999999 | BZ39: 999999999 | CA39: 999999999 | CB39: 999999999 | CF39: =IF(OR(D39="Panelradiator",D39="Panel radiator/convector"),"Panelradiator",IF(OR(D39="Søjleradiator",D39="Pillar radiator"),"Søjleradiator",IF(OR(D39="Planradiator",D39="Planar radiator"),"Planradiator",IF(OR(D39="Konvektor",D39="Convector"),"Konvektor",IF(OR(D39="Gulvvarme",D39="Underfloor heating"),"Gulvvarme"))))) -> FALSE
E40: 0 | Z40: =IF(SUM(BD40:BV40)=0," ",IF(D40="gulvvarme",SUM(BD40:BV40),SUM(BD40:BV40)*((Beregning!J56-20)/Beregn!#REF!)^1.3)) ->  | AB40: =IF(SUM(BF40:BX40)=0," ",IF(F40="gulvvarme",SUM(BF40:BX40),SUM(BF40:BX40)*((Beregning!L56-20)/Beregn!#REF!)^1.3)) ->  | AZ40: 0 | BA40: enkelt | BB40: dobbelt | BC40: tom | BD40: tom | BE40: 0 | BF40: FALSE | BG40: FALSE | BH40: 0 | BI40: 0 | BJ40: 0 | BL40: 0 | BM40: FALSE | BN40: 0 | BO40: 0 | BQ40: FALSE | BR40: 0 | BT40: 0 | BV40: 0 | BY40: 999999999 | BZ40: 999999999 | CA40: 999999999 | CB40: 999999999
E41: 0.14 | G41: 14 | H41: =J41/100 -> 2 | J41: 200 | L41: 1 | N41: 2 | P41: 55 | R41: enkelt | T41: 230 | V41: 34 | X41: 6 | Z41: =IF(SUM(BD41:BV41)=0," ",IF(CF41="Gulvvarme",SUM(BD41:BV41),SUM(BD41:BV41)*((Beregn!C5)/Beregn!C5)^1.3)) ->  | AB41: =IF(SUM(BD41:BV41)=0," ",IF(CF41="Gulvvarme",SUM(BD41:BV41),SUM(BD41:BV41)*((Beregn!J5)/Beregn!C5)^1.3)) ->  | AZ41: 100 | BA41: enkelt | BB41: dobbelt | BC41: tom | BD41: tom | BE41: 0 | BF41: FALSE | BG41: FALSE | BH41: 0 | BI41: 0 | BJ41: 0 | BL41: 0 | BM41: FALSE | BN41: 0 | BO41: 0 | BQ41: FALSE | BR41: 0 | BT41: 0 | BV41: 0 | BY41: 999999999 | BZ41: 999999999 | CA41: 999999999 | CB41: 999999999 | CF41: =IF(OR(D41="Panelradiator",D41="Panel radiator/convector"),"Panelradiator",IF(OR(D41="Søjleradiator",D41="Pillar radiator"),"Søjleradiator",IF(OR(D41="Planradiator",D41="Planar radiator"),"Planradiator",IF(OR(D41="Konvektor",D41="Convector"),"Konvektor",IF(OR(D41="Gulvvarme",D41="Underfloor heating"),"Gulvvarme"))))) -> FALSE
E42: 0 | Z42: =IF(SUM(BD42:BV42)=0," ",IF(D42="gulvvarme",SUM(BD42:BV42),SUM(BD42:BV42)*((Beregning!#REF!-20)/Beregn!#REF!)^1.3)) ->  | AZ42: 0 | BA42: enkelt | BB42: dobbelt | BC42: tom | BD42: tom | BE42: 0 | BF42: FALSE | BG42: FALSE | BH42: 0 | BI42: 0 | BJ42: 0 | BL42: 0 | BM42: FALSE | BN42: 0 | BO42: 0 | BQ42: FALSE | BR42: 0 | BT42: 0 | BV42: 0 | BY42: 999999999 | BZ42: 999999999 | CA42: 999999999 | CB42: 999999999
T43: =+SUM(Z17:Z32) -> 10968.20313 | CF43: =IF(OR(D43="Panelradiator",D43="Panel radiator/convector"),"Panelradiator",IF(OR(D43="Søjleradiator",D43="Pillar radiator"),"Søjleradiator",IF(OR(D43="Planradiator",D43="Planar radiator"),"Planradiator",IF(OR(D43="Konvektor",D43="Convector"),"Konvektor",IF(OR(D43="Gulvvarme",D43="Underfloor heating"),"Gulvvarme"))))) -> FALSE
AZ46: =SUMIF(D17:D42,"<>gulvvarme",AZ17:AZ42) -> 1200

Sheet Definitions
B2: =IF('Heat emitters'!AR5="Dansk","Panelradiator/konvektor","Panel radiator/convector") -> Panel radiator/convector | K2: =IF('Heat emitters'!AR5="Dansk","Planradiator","Planar radiator") -> Planar radiator | T2: =IF('Heat emitters'!AR5="Dansk","Søjleradiator","Column radiator") -> Column radiator
G10: =IF('Heat emitters'!AR5="Dansk","Panel-radiator med 3 paneler og 2 stk. konvektorblik","Panel radiator/convector with 3 panels and 2 pcs. of convector veilings") -> Panel radiator/convector with 3 panels and 2 pcs. of convector veilings
K23: =IF('Heat emitters'!AR5="Dansk","Gulvarme","Underfloor heating") -> Underfloor heating
G25: =IF('Heat emitters'!AR5="Dansk","Konvektorblik (her ses 2 stk.)","Convector veilings (2 pcs. Are shown here") -> Convector veilings (2 pcs. Are shown here | K25: =IF('Heat emitters'!AR5="Dansk","For gulvarme regnes som standard med en varmeafgivelse på 50 W pr. kvadratmeter","For underfloor heating, the thermal output is by default set to 50 Watt per square meter") -> For underfloor heating, the thermal output is by default set to 50 Watt per square meter
G31: =IF('Heat emitters'!AR5="Dansk","Paneler","Panel radiator/convector") -> Panel radiator/convector

Sheet Beregn (hidden)
B2: Frem | C2: 90 | D2: 75 | E2: 60 | F2: 60 | G2: 60 | H2: 60 | J2: ='Heat emitters'!G5 -> 60
B3: Retur | C3: 70 | D3: 65 | E3: 50 | F3: 50 | G3: 50 | H3: 50 | J3: ='Heat emitters'!G7 -> 40
B4: Rum | C4: 20 | D4: 20 | E4: 20 | F4: 20 | G4: 20 | H4: 20 | J4: ='Heat emitters'!G9 -> 20
B5: Logmid | C5: =(C2-C3)/LN((C2-C4)/(C3-C4)) -> 59.44026824 | D5: =(D2-D3)/LN((D2-D4)/(D3-D4)) -> 49.83288655 | E5: 34.76059497 | F5: =(F2-F3)/LN((F2-F4)/(F3-F4)) -> 34.76059497 | G5: 34.76059497 | H5: 34.76059497 | J5: =(J2-J3)/LN((J2-J4)/(J3-J4)) -> 28.85390082
B8: Installeret radiatoreffekt ved 90/70/20 °C | F8: =(SUM('Heat emitters'!$Z17:$Z64)-'Heat emitters'!BV15)/(((Beregning!J45-20)/Beregn!C5)^1.3)+0.1 -> 28789.34417 | I8: =F8*(D5/C5)^1.3 -> 22892.73285
B10: Gulvvarme ved - 12 og ved -7 | D10: ='Heat emitters'!BV15 -> 500
B11: GV andel | D11: =D10/Beregning!J33 -> 0.07333333333
B12: Gv frem | D12: =Beregning!G41 -> 36
B13: GV retur ved -12 | D13: =Beregning!G43 -> 30
B15: Situation -12:
B16: Ved -12 skal rad yde | D16: =MAX(0,Beregning!J33-Beregn!D10) -> 6318.181818
B17: Nødvendig middel | D17: =(D16/$F$8)^(1/1.3)*$C$5+20 -> 38.51121284
B19: Frem rad | D19: =MAX(D17+(Beregning!G37-Beregning!G39)/2*D16/Beregning!J47,D12) -> 41.213111 | F19: =D19-D16/Beregning!J47*(Beregning!G37-Beregning!G39) -> 35.80931468
B20: Retur | D20: =D19-2*(D19-D17) -> 35.80931468 | F20: =D19-2*(D19-D17) -> 35.80931468
B21: mcrad | D21: =D16/(D19-D20) -> 1169.21169
B22: mc gulv | D22: =D10/(D19-D13) -> 44.59065822 | F22: =D10/(D19-D13) -> 44.59065822
B23: mc sum | D23: =D21+D22 -> 1213.802348 | G23: =D23/4186*3600 -> 1043.881618
B24: Samlet retur | D24: =(D21*D20+D22*D13)/D23 -> 35.59590171
B27: Situation -7
B28: Nødvendig ydelse | D28: =MAX(0,Beregning!M33-Beregn!D10) -> 5252.840909
B29: Nødvendig middel ved -7 | D29: =(D28/$F$8)^(1/1.3)*$C$5+20 -> 36.05995055
B30: Frem | D30: =MAX(D29+(Beregning!G37-Beregning!G39)*Beregn!D28/Beregning!J47/2,37) -> 38.30626786
B31: ret | D31: =D30-2*(D30-D29) -> 33.81363324
B32: Flow W/K rad | D32: =D28/(D30-D31+0.0000001) -> 1169.211664
B33: Flow gulv W/K | D33: =D10/(D30-D13) -> 60.19550639
C34: tot | D34: =D32+D33 -> 1229.40717 | G34: =D34/4186*3600 -> 1057.301914
B37: ved -12 | D37: =D34/4186*3600 -> 1057.301914 | H37: ,

Sheet Ark2 (hidden)

Sheet Ark3 (hidden)
